[Event "NJSK 2024 B"]
[Site "Groningen, Netherlands"]
[Date "2024.04.29"]
[Round "3.3"]
[White "Krylov, Philippe"]
[Black "Van Batenburg, Mees"]
[Result "0-1"]
[TimeControl "90min/40moves + 30min + 30sec/move"]
[WhiteElo "2007"]
[BlackElo "2110"]

1. d4 {[%clk 01:30:55]} {[%emt 00:00:05]} d5 {[%clk 01:30:35]} {[%emt
00:00:25]} 2. c4 {[%clk 01:31:16]} {[%emt 00:00:09]} e6 {[%clk 01:30:59]}
{[%emt 00:00:05]} 3. Nc3 {[%clk 01:31:15]} {[%emt 00:00:31]} c5 {[%clk
01:31:23]} {[%emt 00:00:06]} 4. cxd5 {[%clk 01:29:25]} {[%emt 00:02:20]} exd5
{[%clk 01:31:45]} {[%emt 00:00:08]} 5. Nf3 {[%clk 01:29:43]} {[%emt 00:00:12]}
Nf6 {[%clk 01:32:09]} {[%emt 00:00:06]} 6. g3 {[%clk 01:30:00]} {[%emt
00:00:14]} Nc6 {[%clk 01:32:31]} {[%emt 00:00:07]} 7. Bg2 {[%clk 01:30:22]}
{[%emt 00:00:08]} Be7 {[%clk 01:32:57]} {[%emt 00:00:04]} 8. O-O {[%clk
01:30:40]} {[%emt 00:00:13]} O-O {[%clk 01:33:20]} {[%emt 00:00:06]} 9. Bg5
{[%clk 01:31:03]} {[%emt 00:00:07]} c4 {[%clk 01:33:45]} {[%emt 00:00:05]} 10.
Ne1 {[%clk 01:18:37]} {[%emt 00:12:56]} Be6 {[%clk 01:28:11]} {[%emt 00:06:03]}
11. Nc2 {[%clk 01:15:24]} {[%emt 00:03:44]} h6 {[%clk 01:15:03]} {[%emt
00:13:38]} 12. Bc1 {[%clk 01:10:40]} {[%emt 00:05:15]} Rb8 {[%clk 01:00:54]}
{[%emt 00:14:39]} 13. Bf4 {[%clk 00:51:20]} {[%emt 00:19:50]} Bd6 {[%clk
00:58:58]} {[%emt 00:02:26]} 14. Bxd6 {[%clk 00:51:29]} {[%emt 00:00:21]} Qxd6
{[%clk 00:59:26]} {[%emt 00:00:02]} 15. f3 {[%clk 00:49:42]} {[%emt 00:02:18]}
Rfd8 {[%clk 00:55:16]} {[%emt 00:04:39]} 16. Qd2 {[%clk 00:37:08]} {[%emt
00:13:04]} b5 {[%clk 00:52:19]} {[%emt 00:03:27]} 17. a3 {[%clk 00:35:29]}
{[%emt 00:02:10]} a5 {[%clk 00:42:28]} {[%emt 00:10:20]} 18. Rfd1 {[%clk
00:31:28]} {[%emt 00:04:30]} b4 {[%clk 00:36:47]} {[%emt 00:06:12]} 19. Na4
{[%clk 00:29:35]} {[%emt 00:02:23]} Bf5 {[%clk 00:34:39]} {[%emt 00:02:37]} 20.
Ne3 {[%clk 00:20:39]} {[%emt 00:09:26]} Bg6 {[%clk 00:32:59]} {[%emt 00:02:10]}
21. Bh3 {[%clk 00:19:53]} {[%emt 00:01:16]} Re8 {[%clk 00:28:36]} {[%emt
00:04:53]} 22. Nf5 {[%clk 00:17:28]} {[%emt 00:02:55]} Bxf5 {[%clk 00:24:35]}
{[%emt 00:04:30]} 23. Bxf5 {[%clk 00:17:56]} {[%emt 00:00:02]} Rb5 {[%clk
00:22:04]} {[%emt 00:03:01]} 24. Bc2 {[%clk 00:13:18]} {[%emt 00:05:08]} Qe7
{[%clk 00:19:17]} {[%emt 00:03:17]} 25. Re1 {[%clk 00:08:19]} {[%emt 00:05:29]}
bxa3 {[%clk 00:11:57]} {[%emt 00:07:50]} 26. Rxa3 {[%clk 00:05:10]} {[%emt
00:03:39]} Qb4 {[%clk 00:08:07]} {[%emt 00:04:20]} 27. Rd1 {[%clk 00:05:24]}
{[%emt 00:00:16]} Qe7 {[%clk 00:07:16]} {[%emt 00:01:20]} 28. Re1 {[%clk
00:05:48]} {[%emt 00:00:06]} Reb8 {[%clk 00:06:34]} {[%emt 00:01:12]} 29. Re3
{[%clk 00:05:18]} {[%emt 00:01:01]} Qb4 {[%clk 00:04:42]} {[%emt 00:02:23]} 30.
Rc3 {[%clk 00:03:21]} {[%emt 00:02:26]} Qd6 {[%clk 00:04:10]} {[%emt 00:01:02]}
31. Kf2 {[%clk 00:03:06]} {[%emt 00:00:45]} Kf8 {[%clk 00:04:09]} {[%emt
00:00:31]} 32. Re3 {[%clk 00:02:31]} {[%emt 00:01:06]} Ne8 {[%clk 00:02:49]}
{[%emt 00:01:49]} 33. Rd1 {[%clk 00:02:02]} {[%emt 00:01:00]} Nc7 {[%clk
00:02:58]} {[%emt 00:00:21]} 34. Rc3 {[%clk 00:01:36]} {[%emt 00:00:55]} Ne6
{[%clk 00:02:43]} {[%emt 00:00:45]} 35. e3 {[%clk 00:01:36]} {[%emt 00:00:31]}
Rb4 {[%clk 00:02:49]} {[%emt 00:00:23]} 36. Ra3 {[%clk 00:01:44]} {[%emt
00:00:23]} Rxb2 {[%clk 00:02:29]} {[%emt 00:00:50]} 37. Nxb2 {[%clk 00:02:08]}
{[%emt 00:00:06]} Qxa3 {[%clk 00:02:51]} {[%emt 00:00:07]} 38. Nxc4 {[%clk
00:02:35]} {[%emt 00:00:03]} dxc4 {[%clk 00:02:31]} {[%emt 00:00:50]} 39. d5
{[%clk 00:03:01]} {[%emt 00:00:04]} Nb4 {[%clk 00:01:30]} {[%emt 00:01:31]} 40.
dxe6 {[%clk 00:03:19]} {[%emt 00:00:11]} Nxc2 {[%clk 00:01:40]} {[%emt
00:00:20]} 41. exf7 {[%clk 00:28:26]} {[%emt 00:05:22]} Qd3 {[%clk 00:25:02]}
{[%emt 00:07:09]} 42. Qc1 {[%clk 00:27:26]} {[%emt 00:01:30]} Qc3 {[%clk
00:25:21]} {[%emt 00:00:10]} 43. e4 {[%clk 00:26:28]} {[%emt 00:01:28]} g5
{[%clk 00:23:06]} {[%emt 00:02:46]} 44. h4 {[%clk 00:24:18]} {[%emt 00:02:40]}
Rb2 {[%clk 00:20:53]} {[%emt 00:02:43]} 45. Kg1 {[%clk 00:20:03]} {[%emt
00:04:45]} Qe3+ {[%clk 00:20:50]} {[%emt 00:00:33]} 46. Kh2 {[%clk 00:20:19]}
{[%emt 00:00:14]} Qf2+ {[%clk 00:18:48]} {[%emt 00:02:32]} 47. Kh3 {[%clk
00:19:08]} {[%emt 00:01:41]} Ne3 {[%clk 00:19:04]} {[%emt 00:00:14]} 0-1

[Event "NJSK 2024 B"]
[Site "Groningen, Netherlands"]
[Date "2024.04.29"]
[Round "3.4"]
[White "Van Arendonk, Polle"]
[Black "Kumar, Prajit Sai"]
[Result "1-0"]
[TimeControl "90min/40moves + 30min + 30sec/move"]
[WhiteElo "1914"]
[BlackElo "2211"]

1. e4 {[%clk 01:30:57]} {[%emt 00:00:02]} c5 {[%clk 01:30:57]} {[%emt
00:00:03]} 2. Nf3 {[%clk 01:31:24]} {[%emt 00:00:03]} Nc6 {[%clk 01:31:22]}
{[%emt 00:00:05]} 3. d4 {[%clk 01:31:51]} {[%emt 00:00:03]} cxd4 {[%clk
01:31:46]} {[%emt 00:00:06]} 4. Nxd4 {[%clk 01:32:18]} {[%emt 00:00:03]} Nf6
{[%clk 01:32:09]} {[%emt 00:00:07]} 5. Nc3 {[%clk 01:32:46]} {[%emt 00:00:02]}
d6 {[%clk 01:32:33]} {[%emt 00:00:06]} 6. f3 {[%clk 01:33:11]} {[%emt
00:00:05]} e5 {[%clk 01:32:27]} {[%emt 00:00:36]} 7. Nb3 {[%clk 01:33:23]}
{[%emt 00:00:18]} Be6 {[%clk 01:32:48]} {[%emt 00:00:08]} 8. Be3 {[%clk
01:33:26]} {[%emt 00:00:27]} Be7 {[%clk 01:31:45]} {[%emt 00:01:34]} 9. Qe2
{[%clk 01:33:51]} {[%emt 00:00:05]} O-O {[%clk 01:30:03]} {[%emt 00:02:11]} 10.
O-O-O {[%clk 01:34:17]} {[%emt 00:00:05]} a5 {[%clk 01:27:33]} {[%emt
00:03:00]} 11. Nc5 {[%clk 01:22:59]} {[%emt 00:11:48]} Qc8 {[%clk 01:21:52]}
{[%emt 00:06:11]} 12. Nxe6 {[%clk 01:23:11]} {[%emt 00:00:19]} Qxe6 {[%clk
01:19:58]} {[%emt 00:02:24]} 13. Qb5 {[%clk 01:20:31]} {[%emt 00:03:10]} Qc8
{[%clk 01:08:29]} {[%emt 00:11:58]} 14. g4 {[%clk 01:09:26]} {[%emt 00:11:35]}
a4 {[%clk 01:06:35]} {[%emt 00:02:24]} 15. Nxa4 {[%clk 01:00:20]} {[%emt
00:09:35]} Ra5 {[%clk 01:01:54]} {[%emt 00:05:11]} 16. Qb3 {[%clk 00:58:44]}
{[%emt 00:02:06]} Nd7 {[%clk 00:48:54]} {[%emt 00:13:30]} 17. Nb6 {[%clk
00:53:35]} {[%emt 00:05:40]} Nxb6 {[%clk 00:48:55]} {[%emt 00:00:29]} 18. Bxb6
{[%clk 00:53:59]} {[%emt 00:00:06]} Nd4 {[%clk 00:46:45]} {[%emt 00:02:40]} 19.
Rxd4 {[%clk 00:51:53]} {[%emt 00:02:36]} exd4 {[%clk 00:47:09]} {[%emt
00:00:05]} 20. Bxa5 {[%clk 00:52:17]} {[%emt 00:00:06]} 1-0

[Event "NJSK 2024 B"]
[Site "Groningen, Netherlands"]
[Date "2024.04.29"]
[Round "3.5"]
[White "Roolvink, William"]
[Black "Madularea, David"]
[Result "0-1"]
[TimeControl "90min/40moves + 30min + 30sec/move"]
[WhiteElo "1966"]
[BlackElo "2022"]

1. e4 {[%clk 01:30:57]} {[%emt 00:00:03]} c5 {[%clk 01:30:54]} {[%emt
00:00:07]} 2. Nc3 {[%clk 01:31:25]} {[%emt 00:00:02]} d6 {[%clk 01:31:13]}
{[%emt 00:00:12]} 3. d4 {[%clk 01:31:52]} {[%emt 00:00:03]} cxd4 {[%clk
01:31:40]} {[%emt 00:00:03]} 4. Qxd4 {[%clk 01:32:16]} {[%emt 00:00:05]} Nc6
{[%clk 01:32:06]} {[%emt 00:00:04]} 5. Bb5 {[%clk 01:32:30]} {[%emt 00:00:17]}
Bd7 {[%clk 01:28:29]} {[%emt 00:04:07]} 6. Bxc6 {[%clk 01:32:53]} {[%emt
00:00:07]} Bxc6 {[%clk 01:28:47]} {[%emt 00:00:12]} 7. Bg5 {[%clk 01:31:06]}
{[%emt 00:02:16]} Qa5 {[%clk 01:14:50]} {[%emt 00:14:26]} 8. Nf3 {[%clk
01:25:35]} {[%emt 00:06:03]} Nf6 {[%clk 01:13:48]} {[%emt 00:01:32]} 9. Bxf6
{[%clk 01:04:54]} {[%emt 00:21:11]} gxf6 {[%clk 01:14:12]} {[%emt 00:00:05]} 10.
Nd2 {[%clk 00:59:58]} {[%emt 00:05:27]} Rg8 {[%clk 01:09:34]} {[%emt 00:05:07]}
11. Nc4 {[%clk 00:58:05]} {[%emt 00:02:24]} Qh5 {[%clk 01:09:14]} {[%emt
00:00:49]} 12. Ne3 {[%clk 00:35:43]} {[%emt 00:22:53]} e6 {[%clk 00:51:31]}
{[%emt 00:18:13]} 13. Ne2 {[%clk 00:24:02]} {[%emt 00:12:12]} Qh4 {[%clk
00:47:27]} {[%emt 00:04:33]} 14. Nc3 {[%clk 00:05:09]} {[%emt 00:19:24]} Bh6
{[%clk 00:25:43]} {[%emt 00:22:13]} 15. g3 {[%clk 00:04:58]} {[%emt 00:00:42]}
Qh5 {[%clk 00:25:46]} {[%emt 00:00:26]} 16. Rd1 {[%clk 00:03:12]} {[%emt
00:02:17]} Qf3 {[%clk 00:24:05]} {[%emt 00:02:11]} 17. O-O {[%clk 00:02:49]}
{[%emt 00:00:53]} Rd8 {[%clk 00:09:47]} {[%emt 00:14:48]} 18. Rd3 {[%clk
00:02:11]} {[%emt 00:01:09]} Qf4 {[%clk 00:08:00]} {[%emt 00:02:17]} 19. Qxa7
{[%clk 00:00:49]} {[%emt 00:01:53]} Kf8 {[%clk 00:04:01]} {[%emt 00:04:29]} 20.
Ng2 {[%clk 00:00:43]} {[%emt 00:00:36]} Qg4 {[%clk 00:02:52]} {[%emt 00:01:38]}
21. Rfd1 {[%clk 00:00:47]} {[%emt 00:00:26]} Bxe4 {[%clk 00:01:42]} {[%emt
00:01:40]} 22. Qa5 {[%clk 00:01:10]} {[%emt 00:00:07]} Kg7 {[%clk 00:01:07]}
{[%emt 00:01:06]} 23. Rd4 {[%clk 00:00:49]} {[%emt 00:00:51]} Qf5 {[%clk
00:00:46]} {[%emt 00:00:51]} 24. Qxf5 {[%clk 00:00:45]} {[%emt 00:00:34]} Bxf5
{[%clk 00:01:13]} {[%emt 00:00:04]} 25. Rxd6 {[%clk 00:00:53]} {[%emt
00:00:22]} Rxd6 {[%clk 00:01:28]} {[%emt 00:00:15]} 26. Rxd6 {[%clk 00:01:21]}
{[%emt 00:00:01]} Bxc2 {[%clk 00:01:48]} {[%emt 00:00:10]} 27. Rb6 {[%emt
00:01:04]} Rb8 {[%clk 00:01:07]} {[%emt 00:01:10]} 28. Nh4 {[%clk 00:00:35]}
{[%emt 00:00:44]} Bd2 {[%clk 00:00:38]} {[%emt 00:00:58]} 29. Ne2 {[%clk
00:00:35]} {[%emt 00:00:30]} Be4 {[%clk 00:00:51]} {[%emt 00:00:17]} 30. Ng2
{[%clk 00:00:42]} {[%emt 00:00:24]} Rc8 {[%clk 00:00:50]} {[%emt 00:00:32]} 31.
b4 {[%emt 00:00:39]} Bf3 {[%clk 00:01:00]} {[%emt 00:00:18]} 32. Kf1 {[%clk
00:00:40]} {[%emt 00:00:24]} Rc2 {[%clk 00:00:55]} {[%emt 00:00:35]} 33. Ne1
{[%clk 00:00:41]} {[%emt 00:00:29]} Bxe1 {[%clk 00:01:08]} {[%emt 00:00:17]} 34.
Nd4 {[%clk 00:01:03]} {[%emt 00:00:08]} Bxf2 {[%clk 00:01:32]} {[%emt
00:00:06]} 35. Nxf3 {[%clk 00:01:12]} {[%emt 00:00:14]} Bxb6 {[%clk 00:01:58]}
{[%emt 00:00:10]} 0-1

[Event "NJSK 2024 B"]
[Site "Groningen, Netherlands"]
[Date "2024.04.29"]
[Round "3.6"]
[White "Fallaux, Storm"]
[Black "Kshirsagar, Pranav"]
[Result "1-0"]
[TimeControl "90min/40moves + 30min + 30sec/move"]
[WhiteElo "1905"]
[BlackElo "1957"]

1. e4 {[%clk 01:30:58]} c6 {[%clk 01:30:55]} {[%emt 00:00:06]} 2. d4 {[%clk
01:31:16]} {[%emt 00:00:11]} d5 {[%clk 01:31:21]} {[%emt 00:00:04]} 3. Nd2
{[%clk 01:31:15]} {[%emt 00:00:32]} dxe4 {[%clk 01:31:44]} {[%emt 00:00:08]} 4.
Nxe4 {[%clk 01:31:39]} {[%emt 00:00:05]} Nf6 {[%clk 01:32:05]} {[%emt
00:00:08]} 5. Nxf6+ {[%clk 01:32:03]} {[%emt 00:00:07]} exf6 {[%clk 01:32:32]}
{[%emt 00:00:03]} 6. c3 {[%clk 01:32:23]} {[%emt 00:00:10]} Bd6 {[%clk
01:32:57]} {[%emt 00:00:05]} 7. Bd3 {[%clk 01:32:46]} {[%emt 00:00:07]} O-O
{[%clk 01:33:21]} {[%emt 00:00:06]} 8. Qc2 {[%clk 01:33:11]} {[%emt 00:00:05]}
Re8+ {[%clk 01:33:45]} {[%emt 00:00:07]} 9. Ne2 {[%clk 01:33:35]} {[%emt
00:00:05]} h5 {[%clk 01:33:37]} {[%emt 00:00:37]} 10. O-O {[%clk 01:33:38]}
{[%emt 00:00:28]} Qc7 {[%clk 01:32:08]} {[%emt 00:01:59]} 11. h3 {[%clk
01:33:42]} {[%emt 00:00:26]} Be6 {[%clk 01:28:00]} {[%emt 00:04:38]} 12. c4
{[%clk 01:31:52]} {[%emt 00:02:20]} Nd7 {[%clk 01:23:47]} {[%emt 00:04:44]} 13.
c5 {[%clk 01:30:55]} {[%emt 00:01:27]} Bh2+ {[%clk 01:17:28]} {[%emt 00:06:49]}
14. Kh1 {[%clk 01:30:48]} {[%emt 00:00:37]} h4 {[%clk 01:07:37]} {[%emt
00:10:21]} 15. f4 {[%clk 01:22:19]} {[%emt 00:08:58]} Bg3 {[%clk 01:07:40]}
{[%emt 00:00:28]} 16. Nxg3 {[%clk 01:22:26]} {[%emt 00:00:23]} hxg3 {[%clk
01:08:03]} {[%emt 00:00:07]} 17. f5 {[%clk 01:22:31]} {[%emt 00:00:25]} Bd5
{[%clk 01:05:05]} {[%emt 00:03:29]} 18. Bf4 {[%clk 01:22:31]} {[%emt 00:00:30]}
Qd8 {[%clk 00:59:26]} {[%emt 00:06:09]} 19. Bxg3 {[%clk 01:19:38]} {[%emt
00:03:22]} Re3 {[%clk 00:59:25]} {[%emt 00:00:30]} 20. Kh2 {[%clk 01:18:59]}
{[%emt 00:01:09]} b6 {[%clk 00:54:40]} {[%emt 00:05:15]} 21. b4 {[%clk
01:15:42]} {[%emt 00:03:47]} a5 {[%clk 00:54:49]} {[%emt 00:00:21]} 22. a3
{[%clk 01:15:11]} {[%emt 00:01:01]} axb4 {[%clk 00:53:48]} {[%emt 00:01:31]} 23.
axb4 {[%clk 01:15:12]} {[%emt 00:00:29]} Rxa1 {[%clk 00:54:12]} {[%emt
00:00:06]} 24. Rxa1 {[%clk 01:15:32]} {[%emt 00:00:09]} Rxg3 {[%clk 00:47:43]}
{[%emt 00:06:58]} 25. Kxg3 {[%clk 01:14:04]} {[%emt 00:01:58]} Qb8+ {[%clk
00:47:29]} {[%emt 00:00:44]} 26. Kg4 {[%clk 01:06:25]} {[%emt 00:08:09]} bxc5
{[%clk 00:43:26]} {[%emt 00:04:33]} 27. bxc5 {[%clk 01:05:08]} {[%emt
00:01:47]} Qb4 {[%clk 00:43:24]} {[%emt 00:00:32]} 28. Ra4 {[%clk 01:01:36]}
{[%emt 00:04:03]} Qe1 {[%clk 00:35:12]} {[%emt 00:08:41]} 29. Qe2 {[%clk
00:55:13]} {[%emt 00:06:53]} Qc1 {[%clk 00:33:48]} {[%emt 00:01:54]} 30. h4
{[%clk 00:43:44]} {[%emt 00:11:59]} Nf8 {[%clk 00:21:32]} {[%emt 00:12:45]} 31.
Bc4 {[%clk 00:38:13]} {[%emt 00:06:02]} Bxg2 {[%clk 00:17:01]} {[%emt
00:05:01]} 32. Ra8 {[%clk 00:33:17]} {[%emt 00:05:25]} Qg1 {[%clk 00:15:07]}
{[%emt 00:02:24]} 33. Bxf7+ {[%clk 00:32:10]} {[%emt 00:01:38]} Kxf7 {[%clk
00:12:03]} {[%emt 00:03:34]} 34. Qe8+ {[%clk 00:32:22]} {[%emt 00:00:17]} 1-0

[Event "NJSK 2024 B"]
[Site "Groningen, Netherlands"]
[Date "2024.04.29"]
[Round "3.7"]
[White "Heus, Daan"]
[Black "Wink, Luka"]
[Result "0-1"]
[TimeControl "90min/40moves + 30min + 30sec/move"]
[WhiteElo "1921"]
[BlackElo "2082"]

1. c4 {[%clk 01:30:55]} {[%emt 00:00:05]} f5 {[%clk 01:30:18]} {[%emt
00:00:42]} 2. Nc3 {[%clk 01:29:55]} {[%emt 00:01:30]} Nf6 {[%clk 01:30:22]}
{[%emt 00:00:25]} 3. Nf3 {[%clk 01:29:51]} {[%emt 00:00:35]} d6 {[%clk
01:30:28]} {[%emt 00:00:24]} 4. d4 {[%clk 01:29:46]} {[%emt 00:00:35]} e6
{[%clk 01:30:24]} {[%emt 00:00:33]} 5. g3 {[%clk 01:29:21]} {[%emt 00:00:56]}
Be7 {[%clk 01:30:24]} {[%emt 00:00:29]} 6. Bg2 {[%clk 01:29:04]} {[%emt
00:00:47]} O-O {[%clk 01:30:45]} {[%emt 00:00:08]} 7. O-O {[%clk 01:29:03]}
{[%emt 00:00:32]} Ne4 {[%clk 01:30:30]} {[%emt 00:00:46]} 8. Qc2 {[%clk
01:28:16]} {[%emt 00:01:17]} Nxc3 {[%clk 01:30:47]} {[%emt 00:00:12]} 9. Qxc3
{[%clk 01:26:20]} {[%emt 00:02:26]} Bf6 {[%clk 01:30:48]} {[%emt 00:00:30]} 10.
Qc2 {[%clk 01:24:50]} {[%emt 00:02:00]} Nc6 {[%clk 01:23:48]} {[%emt 00:07:30]}
11. Rd1 {[%clk 01:22:57]} {[%emt 00:02:23]} Qe7 {[%clk 01:15:26]} {[%emt
00:08:53]} 12. a3 {[%clk 01:18:26]} {[%emt 00:05:01]} e5 {[%clk 01:13:40]}
{[%emt 00:02:15]} 13. d5 {[%clk 01:17:25]} {[%emt 00:01:30]} Nb8 {[%clk
01:12:21]} {[%emt 00:01:49]} 14. e4 {[%clk 01:11:24]} {[%emt 00:06:31]} g6
{[%clk 01:07:47]} {[%emt 00:05:04]} 15. Ne1 {[%clk 01:02:22]} {[%emt 00:09:32]}
fxe4 {[%clk 01:04:28]} {[%emt 00:03:49]} 16. Bxe4 {[%clk 01:01:19]} {[%emt
00:01:33]} a5 {[%clk 01:02:02]} {[%emt 00:02:57]} 17. Rb1 {[%clk 00:57:50]}
{[%emt 00:03:58]} a4 {[%clk 01:00:06]} {[%emt 00:02:27]} 18. Nd3 {[%clk
00:51:42]} {[%emt 00:06:39]} Nd7 {[%clk 00:57:32]} {[%emt 00:03:03]} 19. Rf1
{[%clk 00:44:00]} {[%emt 00:08:12]} b6 {[%clk 00:51:41]} {[%emt 00:06:21]} 20.
b4 {[%clk 00:34:56]} {[%emt 00:09:34]} axb3 {[%clk 00:50:39]} {[%emt 00:01:33]}
21. Rxb3 {[%clk 00:34:50]} {[%emt 00:00:35]} Bg7 {[%clk 00:45:28]} {[%emt
00:05:41]} 22. Be3 {[%clk 00:30:01]} {[%emt 00:05:19]} Nf6 {[%clk 00:43:25]}
{[%emt 00:02:33]} 23. Bg5 {[%clk 00:29:59]} {[%emt 00:00:32]} Qe8 {[%clk
00:32:43]} {[%emt 00:11:12]} 24. Bxf6 {[%clk 00:28:29]} {[%emt 00:01:59]} Bxf6
{[%clk 00:32:43]} {[%emt 00:00:29]} 25. Nb4 {[%clk 00:20:42]} {[%emt 00:08:18]}
Bg5 {[%clk 00:28:11]} {[%emt 00:05:02]} 26. Qe2 {[%clk 00:18:16]} {[%emt
00:02:56]} Bh3 {[%clk 00:25:27]} {[%emt 00:03:14]} 27. Re1 {[%clk 00:16:55]}
{[%emt 00:01:51]} Bd7 {[%clk 00:24:47]} {[%emt 00:01:09]} 28. Nc6 {[%clk
00:15:30]} {[%emt 00:01:56]} Kh8 {[%clk 00:21:10]} {[%emt 00:04:07]} 29. h4
{[%clk 00:12:38]} {[%emt 00:03:22]} Bf6 {[%clk 00:20:10]} {[%emt 00:01:30]} 30.
Kg2 {[%clk 00:11:38]} {[%emt 00:01:30]} Kg7 {[%clk 00:19:24]} {[%emt 00:01:16]}
31. Rh1 {[%clk 00:11:03]} {[%emt 00:01:04]} Qf7 {[%clk 00:18:41]} {[%emt
00:01:14]} 32. h5 {[%clk 00:10:05]} {[%emt 00:01:28]} Ra4 {[%clk 00:15:57]}
{[%emt 00:03:14]} 33. hxg6 {[%clk 00:09:25]} {[%emt 00:01:10]} hxg6 {[%clk
00:16:16]} {[%emt 00:00:11]} 34. Qd2 {[%clk 00:08:26]} {[%emt 00:01:29]} Bg5
{[%clk 00:15:58]} {[%emt 00:00:48]} 35. Qe2 {[%clk 00:07:13]} {[%emt 00:01:43]}
Rh8 {[%clk 00:13:48]} {[%emt 00:02:39]} 36. Rxh8 {[%clk 00:06:26]} {[%emt
00:01:17]} Kxh8 {[%clk 00:14:14]} {[%emt 00:00:05]} 37. Rf3 {[%clk 00:05:56]}
{[%emt 00:01:01]} Qg8 {[%clk 00:12:04]} {[%emt 00:02:39]} 38. Qd3 {[%clk
00:02:09]} {[%emt 00:04:17]} Bg4 {[%clk 00:11:13]} {[%emt 00:01:20]} 39. Bxg6
{[%clk 00:01:42]} {[%emt 00:00:58]} Bxf3+ {[%clk 00:11:26]} {[%emt 00:00:17]}
40. Kxf3 {[%clk 00:02:01]} {[%emt 00:00:11]} Ra8 {[%clk 00:08:59]} {[%emt
00:02:58]} 41. Kg2 {[%clk 00:00:59]} {[%emt 00:01:31]} Rf8 {[%clk 00:07:30]}
{[%emt 00:01:58]} 42. Be4 {[%clk 00:28:45]} {[%emt 00:02:45]} Qf7 {[%clk
00:34:52]} {[%emt 00:03:07]} 43. Qe2 {[%clk 00:27:31]} {[%emt 00:01:45]} Kg7
{[%clk 00:33:13]} {[%emt 00:02:09]} 44. Na7 {[%clk 00:23:15]} {[%emt 00:04:47]}
Qf6 {[%clk 00:20:20]} {[%emt 00:13:23]} 45. Nb5 {[%clk 00:21:36]} {[%emt
00:02:09]} Rf7 {[%clk 00:20:38]} {[%emt 00:00:11]} 46. f3 {[%clk 00:17:17]}
{[%emt 00:04:49]} Kf8 {[%clk 00:18:26]} {[%emt 00:02:43]} 47. Qc2 {[%clk
00:15:38]} {[%emt 00:02:10]} Be3 {[%clk 00:16:03]} {[%emt 00:02:52]} 48. Qa4
{[%clk 00:14:49]} {[%emt 00:01:19]} Qd8 {[%clk 00:12:08]} {[%emt 00:04:25]} 49.
Qa7 {[%clk 00:12:56]} {[%emt 00:02:22]} c6 {[%clk 00:12:10]} {[%emt 00:00:28]}
0-1